[Event "Titled Tuesday Blitz February 14 Early 2023"]
[White "Mushini Ajay"]
[Black "Kumala, Aleksander"]
[WhiteFideId "35066188"]
[BlackFideId "1141880"]
[WhiteElo "2310"]
[BlackElo "2165"]
[Result "0-1"]
[Round "10"]
[TimeControl "180+2"]
[Date "2023.02.14"]
[WhiteClock "0:02:43"]
[BlackClock "0:02:39"]

1. d4 {[%clk 0:02:59]}  Nf6 {[%clk 0:03:00]} 2. c4 {[%clk 0:02:59]}  Nc6 {[%clk 0:03:00]} 3. Nc3 {[%clk 0:02:57]}  e5 {[%clk 0:03:00]} 4. d5 {[%clk 0:02:56]}  Ne7 {[%clk 0:03:01]} 5. e4 {[%clk 0:02:56]}  Ng6 {[%clk 0:03:01]} 6. Be3 {[%clk 0:02:56]}  Bb4 {[%clk 0:03:00]} 7. Bd3 {[%clk 0:02:56]}  O-O {[%clk 0:02:58]} 8. Ne2 {[%clk 0:02:55]}  d6 {[%clk 0:02:56]} 9. O-O {[%clk 0:02:55]}  Nh5 {[%clk 0:02:53]} 10. a3 {[%clk 0:02:54]}  Bxc3 {[%clk 0:02:54]} 11. Nxc3 {[%clk 0:02:55]}  Nhf4 {[%clk 0:02:53]} 12. Ne2 {[%clk 0:02:54]}  Nxd3 {[%clk 0:02:52]} 13. Qxd3 {[%clk 0:02:53]}  f5 {[%clk 0:02:52]} 14. f3 {[%clk 0:02:53]}  f4 {[%clk 0:02:48]} 15. Bf2 {[%clk 0:02:53]}  Qg5 {[%clk 0:02:47]} 16. c5 {[%clk 0:02:53]}  Bh3 {[%clk 0:02:45]} 17. g3 {[%clk 0:02:49]}  Bxf1 {[%clk 0:02:44]} 18. Rxf1 {[%clk 0:02:48]}  fxg3 {[%clk 0:02:44]} 19. hxg3 {[%clk 0:02:46]}  Nf4 {[%clk 0:02:42]} 20. Nxf4 {[%clk 0:02:45]}  exf4 {[%clk 0:02:40]} 21. g4 {[%clk 0:02:43]}  h5 {[%clk 0:02:38]} 22. Qe2 {[%clk 0:02:43]}  hxg4 {[%clk 0:02:38]} 23. fxg4 {[%clk 0:02:43]}  f3 {[%clk 0:02:39]} 0-1


[Site "https://www.chess.com"]

[Event "Titled Tuesday Blitz February 14 Early 2023"]
[White "Begunov, Konstantin"]
[Black "Fiorito, Joaquin"]
[WhiteFideId "4118510"]
[BlackFideId "180173"]
[WhiteElo "2325"]
[BlackElo "2405"]
[Result "0-1"]
[Round "10"]
[TimeControl "180+2"]
[Date "2023.02.14"]
[WhiteClock "0:00:02"]
[BlackClock "0:01:11"]

1. d4 {[%clk 0:00:43]}  Nf6 {[%clk 0:02:59]} 2. c4 {[%clk 0:00:42]}  e6 {[%clk 0:02:59]} 3. Nf3 {[%clk 0:00:42]}  d5 {[%clk 0:02:59]} 4. Nc3 {[%clk 0:00:42]}  Bb4 {[%clk 0:02:58]} 5. Qa4+ {[%clk 0:00:39]}  Nc6 {[%clk 0:02:57]} 6. Ne5 {[%clk 0:00:40]}  a5 {[%clk 0:02:53]} 7. Nxc6 {[%clk 0:00:33]}  bxc6 {[%clk 0:02:52]} 8. a3 {[%clk 0:00:25]}  Be7 {[%clk 0:02:36]} 9. cxd5 {[%clk 0:00:19]}  exd5 {[%clk 0:02:36]} 10. Bf4 {[%clk 0:00:19]}  Bd7 {[%clk 0:02:34]} 11. Qc2 {[%clk 0:00:18]}  O-O {[%clk 0:02:34]} 12. e3 {[%clk 0:00:19]}  Bd6 {[%clk 0:02:23]} 13. Bg3 {[%clk 0:00:18]}  c5 {[%clk 0:02:20]} 14. dxc5 {[%clk 0:00:17]}  Bxc5 {[%clk 0:02:20]} 15. Rd1 {[%clk 0:00:16]}  c6 {[%clk 0:02:16]} 16. Nxd5 {[%clk 0:00:15]}  cxd5 {[%clk 0:02:10]} 17. Qxc5 {[%clk 0:00:15]}  Rc8 {[%clk 0:02:10]} 18. Qd4 {[%clk 0:00:16]}  Bg4 {[%clk 0:02:04]} 19. f3 {[%clk 0:00:15]}  Bf5 {[%clk 0:02:04]} 20. Bd3 {[%clk 0:00:14]}  Bxd3 {[%clk 0:02:03]} 21. Qxd3 {[%clk 0:00:15]}  Qb6 {[%clk 0:02:01]} 22. Qd2 {[%clk 0:00:11]}  Rfe8 {[%clk 0:02:01]} 23. Bf2 {[%clk 0:00:10]}  Rb8 {[%clk 0:01:57]} 24. O-O {[%clk 0:00:10]}  Qxb2 {[%clk 0:01:57]} 25. Qxa5 {[%clk 0:00:10]}  Ra8 {[%clk 0:01:55]} 26. Qc5 {[%clk 0:00:10]}  Qxa3 {[%clk 0:01:55]} 27. Qxa3 {[%clk 0:00:09]}  Rxa3 {[%clk 0:01:56]} 28. Rd2 {[%clk 0:00:10]}  h6 {[%clk 0:01:55]} 29. Rfd1 {[%clk 0:00:10]}  Rc8 {[%clk 0:01:55]} 30. Bh4 {[%clk 0:00:10]}  g5 {[%clk 0:01:55]} 31. Bf2 {[%clk 0:00:10]}  Rac3 {[%clk 0:01:52]} 32. g4 {[%clk 0:00:10]}  R3c4 {[%clk 0:01:50]} 33. h4 {[%clk 0:00:09]}  Kg7 {[%clk 0:01:50]} 34. hxg5 {[%clk 0:00:10]}  hxg5 {[%clk 0:01:51]} 35. Kg2 {[%clk 0:00:10]}  Kg6 {[%clk 0:01:51]} 36. Rd4 {[%clk 0:00:10]}  Rc2 {[%clk 0:01:50]} 37. R1d2 {[%clk 0:00:11]}  Rc1 {[%clk 0:01:50]} 38. Bg3 {[%clk 0:00:11]}  Re8 {[%clk 0:01:48]} 39. Kf2 {[%clk 0:00:10]}  Rc6 {[%clk 0:01:44]} 40. Rd1 {[%clk 0:00:10]}  Rc3 {[%clk 0:01:43]} 41. R4d3 {[%clk 0:00:11]}  Rc2+ {[%clk 0:01:43]} 42. R1d2 {[%clk 0:00:11]}  Rc6 {[%clk 0:01:39]} 43. Bh2 {[%clk 0:00:11]}  Rce6 {[%clk 0:01:38]} 44. Bg3 {[%clk 0:00:10]}  Rh8 {[%clk 0:01:34]} 45. Bc7 {[%clk 0:00:09]}  Rh3 {[%clk 0:01:28]} 46. Kg2 {[%clk 0:00:09]}  Rh8 {[%clk 0:01:26]} 47. Kf2 {[%clk 0:00:09]}  Rc8 {[%clk 0:01:25]} 48. Bg3 {[%clk 0:00:09]}  Rce8 {[%clk 0:01:21]} 49. Bh2 {[%clk 0:00:09]}  Ng8 {[%clk 0:01:18]} 50. Bg3 {[%clk 0:00:08]}  Ne7 {[%clk 0:01:17]} 51. Rxd5 {[%clk 0:00:07]}  Nxd5 {[%clk 0:01:17]} 52. Rxd5 {[%clk 0:00:08]}  Rxe3 {[%clk 0:01:18]} 53. Bc7 {[%clk 0:00:04]}  Rc3 {[%clk 0:01:14]} 54. Bb6 {[%clk 0:00:03]}  Rc2+ {[%clk 0:01:11]} 55. Kg3 {[%clk 0:00:02]}  Ree2 {[%clk 0:01:11]} 0-1


[Site "https://www.chess.com"]

[Event "Titled Tuesday Blitz February 14 Early 2023"]
[White "Kopczynski, Michal"]
[Black "Szente Varga, Fruzsina"]
[WhiteFideId "1124200"]
[BlackFideId "712264"]
[WhiteElo "2225"]
[BlackElo "2075"]
[Result "1-0"]
[Round "10"]
[TimeControl "180+2"]
[Date "2023.02.14"]
[WhiteClock "0:00:18"]
[BlackClock "0:00:09"]

1. e4 {[%clk 0:03:00]}  Nf6 {[%clk 0:02:57]} 2. e5 {[%clk 0:02:59]}  Nd5 {[%clk 0:02:56]} 3. d4 {[%clk 0:03:00]}  d6 {[%clk 0:02:52]} 4. exd6 {[%clk 0:03:00]}  exd6 {[%clk 0:02:52]} 5. Bd3 {[%clk 0:03:01]}  Be7 {[%clk 0:02:51]} 6. Ne2 {[%clk 0:03:01]}  O-O {[%clk 0:02:51]} 7. O-O {[%clk 0:03:02]}  Nc6 {[%clk 0:02:48]} 8. c4 {[%clk 0:03:02]}  Nb6 {[%clk 0:02:48]} 9. Nbc3 {[%clk 0:03:02]}  Bf6 {[%clk 0:02:45]} 10. Be3 {[%clk 0:02:59]}  Bg4 {[%clk 0:02:45]} 11. f3 {[%clk 0:02:56]}  Bh5 {[%clk 0:02:40]} 12. Ng3 {[%clk 0:02:54]}  Bg6 {[%clk 0:02:40]} 13. Bxg6 {[%clk 0:02:54]}  hxg6 {[%clk 0:02:41]} 14. b3 {[%clk 0:02:47]}  Re8 {[%clk 0:02:40]} 15. Bf2 {[%clk 0:02:43]}  d5 {[%clk 0:02:25]} 16. c5 {[%clk 0:02:43]}  Nc8 {[%clk 0:02:25]} 17. Qd3 {[%clk 0:02:36]}  N8e7 {[%clk 0:02:23]} 18. Rfe1 {[%clk 0:02:35]}  Qd7 {[%clk 0:02:21]} 19. Re2 {[%clk 0:02:27]}  Nf5 {[%clk 0:02:20]} 20. Nxf5 {[%clk 0:02:26]}  gxf5 {[%clk 0:02:20]} 21. Rae1 {[%clk 0:02:23]}  Rxe2 {[%clk 0:01:31]} 22. Rxe2 {[%clk 0:02:24]}  g6 {[%clk 0:01:27]} 23. h4 {[%clk 0:02:22]}  Nd8 {[%clk 0:01:24]} 24. h5 {[%clk 0:02:22]}  Kg7 {[%clk 0:01:24]} 25. Be3 {[%clk 0:02:03]}  Ne6 {[%clk 0:01:19]} 26. g4 {[%clk 0:01:30]}  fxg4 {[%clk 0:01:00]} 27. fxg4 {[%clk 0:01:29]}  Nxd4 {[%clk 0:00:58]} 28. Rg2 {[%clk 0:01:09]}  Nf3+ {[%clk 0:00:53]} 29. Kf2 {[%clk 0:01:08]}  Ne5 {[%clk 0:00:24]} 30. Qxd5 {[%clk 0:01:06]}  Nxg4+ {[%clk 0:00:16]} 31. Ke2 {[%clk 0:01:01]}  Qxd5 {[%clk 0:00:16]} 32. Nxd5 {[%clk 0:01:02]}  Nxe3 {[%clk 0:00:17]} 33. Kxe3 {[%clk 0:01:00]}  c6 {[%clk 0:00:17]} 34. h6+ {[%clk 0:00:59]}  Kxh6 {[%clk 0:00:16]} 35. Nxf6 {[%clk 0:01:00]}  Rd8 {[%clk 0:00:16]} 36. Rh2+ {[%clk 0:00:58]}  Kg5 {[%clk 0:00:16]} 37. Ne4+ {[%clk 0:00:58]}  Kf5 {[%clk 0:00:16]} 38. Rf2+ {[%clk 0:00:53]}  Ke6 {[%clk 0:00:16]} 39. Nd6 {[%clk 0:00:52]}  f5 {[%clk 0:00:16]} 40. Nxb7 {[%clk 0:00:51]}  Rd5 {[%clk 0:00:14]} 41. Kf4 {[%clk 0:00:47]}  Kf6 {[%clk 0:00:15]} 42. Ke3 {[%clk 0:00:37]}  g5 {[%clk 0:00:15]} 43. b4 {[%clk 0:00:37]}  f4+ {[%clk 0:00:14]} 44. Ke4 {[%clk 0:00:36]}  Re5+ {[%clk 0:00:14]} 45. Kd4 {[%clk 0:00:36]}  Rd5+ {[%clk 0:00:14]} 46. Kc4 {[%clk 0:00:37]}  Kf5 {[%clk 0:00:14]} 47. Nd6+ {[%clk 0:00:37]}  Kg4 {[%clk 0:00:15]} 48. b5 {[%clk 0:00:33]}  Kg3 {[%clk 0:00:15]} 49. Ne4+ {[%clk 0:00:31]}  Kg4 {[%clk 0:00:12]} 50. bxc6 {[%clk 0:00:30]}  Re5 {[%clk 0:00:13]} 51. Nf6+ {[%clk 0:00:20]}  Kf5 {[%clk 0:00:12]} 52. c7 {[%clk 0:00:19]}  Kxf6 {[%clk 0:00:10]} 53. c8=Q {[%clk 0:00:19]}  Re4+ {[%clk 0:00:11]} 54. Kd5 {[%clk 0:00:19]}  Re3 {[%clk 0:00:11]} 55. Qc6+ {[%clk 0:00:18]}  Kf5 {[%clk 0:00:12]} 56. Rg2 {[%clk 0:00:19]}  f3 {[%clk 0:00:10]} 57. Qd7+ {[%clk 0:00:18]}  Kf4 {[%clk 0:00:09]} 58. Qf7# {[%clk 0:00:18]} 1-0


[Site "https://www.chess.com"]

[Event "Titled Tuesday Blitz February 14 Early 2023"]
[White "Mazibuko, Khanya"]
[Black "AidenRchess"]
[WhiteFideId "14321041"]
[WhiteElo "1913"]
[BlackElo "2517"]
[Result "0-1"]
[Round "10"]
[TimeControl "180+2"]
[Date "2023.02.14"]
[WhiteClock "0:00:31"]
[BlackClock "0:01:05"]

1. e4 {[%clk 0:02:57]}  c5 {[%clk 0:02:59]} 2. Nf3 {[%clk 0:02:56]}  e6 {[%clk 0:03:00]} 3. d4 {[%clk 0:02:57]}  cxd4 {[%clk 0:03:01]} 4. Nxd4 {[%clk 0:02:57]}  Nf6 {[%clk 0:03:01]} 5. Nc3 {[%clk 0:02:57]}  Nc6 {[%clk 0:03:02]} 6. Ndb5 {[%clk 0:02:56]}  d6 {[%clk 0:03:01]} 7. Bf4 {[%clk 0:02:57]}  e5 {[%clk 0:03:01]} 8. Bg5 {[%clk 0:02:58]}  a6 {[%clk 0:03:01]} 9. Na3 {[%clk 0:02:57]}  Be6 {[%clk 0:03:01]} 10. Nc4 {[%clk 0:02:51]}  Rc8 {[%clk 0:03:01]} 11. Ne3 {[%clk 0:02:47]}  Be7 {[%clk 0:02:56]} 12. Be2 {[%clk 0:02:39]}  Nd4 {[%clk 0:02:48]} 13. O-O {[%clk 0:02:37]}  O-O {[%clk 0:02:47]} 14. Bxf6 {[%clk 0:02:35]}  Bxf6 {[%clk 0:02:47]} 15. Ned5 {[%clk 0:02:36]}  Bxd5 {[%clk 0:02:47]} 16. exd5 {[%clk 0:02:31]}  b5 {[%clk 0:02:46]} 17. a3 {[%clk 0:02:31]}  Bg5 {[%clk 0:02:39]} 18. f4 {[%clk 0:02:18]}  Bxf4 {[%clk 0:02:35]} 19. Bg4 {[%clk 0:02:14]}  Rc4 {[%clk 0:02:23]} 20. Qd3 {[%clk 0:02:00]}  f5 {[%clk 0:02:08]} 21. Bh3 {[%clk 0:01:58]}  e4 {[%clk 0:02:01]} 22. Qd1 {[%clk 0:01:51]}  Be3+ {[%clk 0:01:59]} 23. Kh1 {[%clk 0:01:52]}  Qe7 {[%clk 0:01:49]} 24. Re1 {[%clk 0:01:12]}  f4 {[%clk 0:01:46]} 25. Be6+ {[%clk 0:01:01]}  Nxe6 {[%clk 0:01:33]} 26. dxe6 {[%clk 0:01:02]}  Qxe6 {[%clk 0:01:34]} 27. Nd5 {[%clk 0:00:57]}  Rd4 {[%clk 0:01:29]} 28. Nc7 {[%clk 0:00:51]}  Qd7 {[%clk 0:01:26]} 29. Qh5 {[%clk 0:00:48]}  Qxc7 {[%clk 0:01:25]} 30. c3 {[%clk 0:00:47]}  Rd2 {[%clk 0:01:24]} 31. Rad1 {[%clk 0:00:46]}  Qc5 {[%clk 0:01:17]} 32. Qg4 {[%clk 0:00:37]}  Rxd1 {[%clk 0:01:14]} 33. Rxd1 {[%clk 0:00:38]}  Qf5 {[%clk 0:01:11]} 34. Qe2 {[%clk 0:00:32]}  Bc5 {[%clk 0:01:06]} 35. a4 {[%clk 0:00:31]}  f3 {[%clk 0:01:05]} 0-1


[Site "https://www.chess.com"]

[Event "Titled Tuesday Blitz February 14 Early 2023"]
[White "Kavutskiy, Konstantin"]
[Black "Fan_Of_Chucky"]
[WhiteFideId "2026384"]
[WhiteElo "2414"]
[BlackElo "2323"]
[Result "0-1"]
[Round "10"]
[TimeControl "180+2"]
[Date "2023.02.14"]
[WhiteClock "0:00:04"]
[BlackClock "0:00:16"]

1. d4 {[%clk 0:03:00]}  Nf6 {[%clk 0:02:59]} 2. Bg5 {[%clk 0:03:00]}  Ne4 {[%clk 0:02:53]} 3. Bf4 {[%clk 0:02:59]}  d5 {[%clk 0:02:51]} 4. e3 {[%clk 0:02:59]}  g6 {[%clk 0:02:48]} 5. Nd2 {[%clk 0:02:58]}  Bg7 {[%clk 0:02:45]} 6. Nxe4 {[%clk 0:02:47]}  dxe4 {[%clk 0:02:46]} 7. h4 {[%clk 0:02:47]}  c5 {[%clk 0:02:41]} 8. c3 {[%clk 0:02:43]}  Nc6 {[%clk 0:02:39]} 9. dxc5 {[%clk 0:02:30]}  Qa5 {[%clk 0:02:34]} 10. h5 {[%clk 0:02:13]}  Bxc3+ {[%clk 0:01:56]} 11. bxc3 {[%clk 0:02:10]}  Qxc3+ {[%clk 0:01:57]} 12. Ke2 {[%clk 0:02:10]}  Be6 {[%clk 0:01:58]} 13. f3 {[%clk 0:02:03]}  Rd8 {[%clk 0:01:55]} 14. Qc1 {[%clk 0:01:58]}  Rd2+ {[%clk 0:01:45]} 15. Qxd2 {[%clk 0:01:56]}  Bc4+ {[%clk 0:01:41]} 16. Ke1 {[%clk 0:01:44]}  Qxa1+ {[%clk 0:01:42]} 17. Kf2 {[%clk 0:01:37]}  Qxf1+ {[%clk 0:01:39]} 18. Kg3 {[%clk 0:01:37]}  gxh5 {[%clk 0:01:36]} 19. Kh2 {[%clk 0:01:25]}  Rg8 {[%clk 0:01:33]} 20. Nh3 {[%clk 0:01:21]}  Qd3 {[%clk 0:01:29]} 21. Qf2 {[%clk 0:01:16]}  exf3 {[%clk 0:01:24]} 22. gxf3 {[%clk 0:01:12]}  e5 {[%clk 0:01:20]} 23. Bg3 {[%clk 0:01:10]}  f5 {[%clk 0:01:15]} 24. Rg1 {[%clk 0:00:52]}  f4 {[%clk 0:01:13]} 25. exf4 {[%clk 0:00:50]}  exf4 {[%clk 0:01:11]} 26. Bxf4 {[%clk 0:00:48]}  Rxg1 {[%clk 0:01:04]} 27. Nxg1 {[%clk 0:00:43]}  Nd4 {[%clk 0:01:00]} 28. Qe1+ {[%clk 0:00:32]}  Kd7 {[%clk 0:00:57]} 29. Qe5 {[%clk 0:00:22]}  Ne6 {[%clk 0:00:53]} 30. Bg3 {[%clk 0:00:18]}  Bxa2 {[%clk 0:00:48]} 31. Qb8 {[%clk 0:00:16]}  Bd5 {[%clk 0:00:45]} 32. Qxa7 {[%clk 0:00:11]}  Bxf3 {[%clk 0:00:42]} 33. Qa4+ {[%clk 0:00:09]}  Bc6 {[%clk 0:00:38]} 34. Qa2 {[%clk 0:00:08]}  Qe4 {[%clk 0:00:35]} 35. Qd2+ {[%clk 0:00:03]}  Kc8 {[%clk 0:00:28]} 36. Kh3 {[%clk 0:00:04]}  Qh1+ {[%clk 0:00:17]} 37. Bh2 {[%clk 0:00:04]}  Bg2+ {[%clk 0:00:16]} 38. Qxg2 {[%clk 0:00:04]}  Nf4+ {[%clk 0:00:16]} 0-1


[Site "https://www.chess.com"]

[Event "Titled Tuesday Blitz February 14 Early 2023"]
[White "Dragomirescu, Angela"]
[Black "Ruiz Aguilar, Pablo Alexander"]
[WhiteFideId "1209914"]
[BlackFideId "4401352"]
[WhiteElo "2130"]
[BlackElo "2161"]
[Result "1-0"]
[Round "10"]
[TimeControl "180+2"]
[Date "2023.02.14"]
[WhiteClock "0:00:08"]
[BlackClock "0:00:02"]

1. e4 {[%clk 0:03:00]}  c5 {[%clk 0:02:59]} 2. Nf3 {[%clk 0:02:59]}  e6 {[%clk 0:03:00]} 3. d4 {[%clk 0:02:59]}  cxd4 {[%clk 0:03:00]} 4. Nxd4 {[%clk 0:03:00]}  a6 {[%clk 0:03:00]} 5. Bd3 {[%clk 0:03:01]}  Nf6 {[%clk 0:02:59]} 6. O-O {[%clk 0:03:00]}  d6 {[%clk 0:03:00]} 7. Qe2 {[%clk 0:03:00]}  Be7 {[%clk 0:03:00]} 8. c4 {[%clk 0:03:00]}  Qc7 {[%clk 0:02:56]} 9. Nc3 {[%clk 0:02:59]}  Nbd7 {[%clk 0:02:56]} 10. Be3 {[%clk 0:02:59]}  b6 {[%clk 0:02:56]} 11. Rad1 {[%clk 0:02:55]}  Bb7 {[%clk 0:02:56]} 12. f4 {[%clk 0:02:55]}  Rc8 {[%clk 0:02:55]} 13. Kh1 {[%clk 0:02:31]}  Nc5 {[%clk 0:02:54]} 14. f5 {[%clk 0:02:20]}  e5 {[%clk 0:02:47]} 15. Nb3 {[%clk 0:02:04]}  Nxd3 {[%clk 0:02:27]} 16. Rxd3 {[%clk 0:02:00]}  Nxe4 {[%clk 0:02:05]} 17. Nd5 {[%clk 0:01:50]}  Bxd5 {[%clk 0:01:55]} 18. cxd5 {[%clk 0:01:51]}  Nc5 {[%clk 0:01:41]} 19. Rc3 {[%clk 0:01:51]}  Qb7 {[%clk 0:01:39]} 20. Qg4 {[%clk 0:01:39]}  Bf6 {[%clk 0:01:33]} 21. Bxc5 {[%clk 0:01:31]}  bxc5 {[%clk 0:01:32]} 22. Nd2 {[%clk 0:01:23]}  Qxb2 {[%clk 0:01:16]} 23. Ne4 {[%clk 0:01:22]}  Ke7 {[%clk 0:01:11]} 24. Rb3 {[%clk 0:01:19]}  Qxa2 {[%clk 0:01:02]} 25. Rb7+ {[%clk 0:01:17]}  Kf8 {[%clk 0:01:02]} 26. Rd1 {[%clk 0:00:35]}  h5 {[%clk 0:00:50]} 27. Qf3 {[%clk 0:00:24]}  Rd8 {[%clk 0:00:34]} 28. h3 {[%clk 0:00:18]}  Qc2 {[%clk 0:00:27]} 29. Rdb1 {[%clk 0:00:16]}  Qc4 {[%clk 0:00:20]} 30. Rd1 {[%clk 0:00:10]}  Qc2 {[%clk 0:00:20]} 31. Qd3 {[%clk 0:00:10]}  Qxd3 {[%clk 0:00:19]} 32. Rxd3 {[%clk 0:00:11]}  Be7 {[%clk 0:00:16]} 33. Ra3 {[%clk 0:00:10]}  h4 {[%clk 0:00:15]} 34. Rxa6 {[%clk 0:00:10]}  Rh5 {[%clk 0:00:14]} 35. Raa7 {[%clk 0:00:10]}  Re8 {[%clk 0:00:11]} 36. f6 {[%clk 0:00:04]}  gxf6 {[%clk 0:00:10]} 37. g4 {[%clk 0:00:04]}  hxg3 {[%clk 0:00:10]} 38. Nxg3 {[%clk 0:00:05]}  Rg5 {[%clk 0:00:09]} 39. Kg2 {[%clk 0:00:06]}  f5 {[%clk 0:00:09]} 40. h4 {[%clk 0:00:06]}  Rg4 {[%clk 0:00:09]} 41. Kf3 {[%clk 0:00:06]}  Rf4+ {[%clk 0:00:09]} 42. Ke3 {[%clk 0:00:07]}  Bxh4 {[%clk 0:00:04]} 43. Rxf7+ {[%clk 0:00:08]}  Kg8 {[%clk 0:00:03]} 44. Rg7+ {[%clk 0:00:09]}  Kf8 {[%clk 0:00:02]} 45. Raf7# {[%clk 0:00:08]} 1-0


[Site "https://www.chess.com"]

[Event "Titled Tuesday Blitz February 14 Early 2023"]
[White "Andreev, Konstantin"]
[Black "Fernandez Siles, Luis"]
[WhiteFideId "24239305"]
[BlackFideId "2209420"]
[WhiteElo "2195"]
[BlackElo "2218"]
[Result "0-1"]
[Round "10"]
[TimeControl "180+2"]
[Date "2023.02.14"]
[WhiteClock "0:00:16"]
[BlackClock "0:00:05"]

1. e4 {[%clk 0:03:00]}  c5 {[%clk 0:02:59]} 2. Nf3 {[%clk 0:03:01]}  Nc6 {[%clk 0:02:59]} 3. Nc3 {[%clk 0:03:01]}  g6 {[%clk 0:02:59]} 4. d4 {[%clk 0:03:01]}  cxd4 {[%clk 0:03:00]} 5. Nxd4 {[%clk 0:03:02]}  Bg7 {[%clk 0:03:00]} 6. Be3 {[%clk 0:03:02]}  Nf6 {[%clk 0:03:00]} 7. Bc4 {[%clk 0:02:59]}  O-O {[%clk 0:02:59]} 8. Bb3 {[%clk 0:02:58]}  d6 {[%clk 0:02:58]} 9. f3 {[%clk 0:02:59]}  Bd7 {[%clk 0:02:54]} 10. Qd2 {[%clk 0:02:59]}  Qa5 {[%clk 0:02:53]} 11. O-O-O {[%clk 0:02:56]}  Rfc8 {[%clk 0:02:52]} 12. Kb1 {[%clk 0:02:54]}  Ne5 {[%clk 0:02:52]} 13. h4 {[%clk 0:02:53]}  Nc4 {[%clk 0:02:51]} 14. Bxc4 {[%clk 0:02:54]}  Rxc4 {[%clk 0:02:52]} 15. h5 {[%clk 0:02:54]}  Rac8 {[%clk 0:02:51]} 16. Bh6 {[%clk 0:02:22]}  Rxc3 {[%clk 0:02:40]} 17. bxc3 {[%clk 0:02:21]}  Qa3 {[%clk 0:01:49]} 18. Bxg7 {[%clk 0:02:16]}  Kxg7 {[%clk 0:01:49]} 19. hxg6 {[%clk 0:01:55]}  fxg6 {[%clk 0:01:50]} 20. Nb3 {[%clk 0:01:52]}  Be6 {[%clk 0:01:39]} 21. g4 {[%clk 0:01:46]}  Rc4 {[%clk 0:01:32]} 22. Qc1 {[%clk 0:01:40]}  Qa6 {[%clk 0:01:27]} 23. Qb2 {[%clk 0:01:34]}  h6 {[%clk 0:00:47]} 24. Rh2 {[%clk 0:01:30]}  Nd7 {[%clk 0:00:36]} 25. Qc1 {[%clk 0:01:24]}  g5 {[%clk 0:00:34]} 26. Nd4 {[%clk 0:01:17]}  Bf7 {[%clk 0:00:15]} 27. Nf5+ {[%clk 0:01:08]}  Kf8 {[%clk 0:00:14]} 28. Rxh6 {[%clk 0:01:04]}  Rb4+ {[%clk 0:00:12]} 29. Qb2 {[%clk 0:01:01]}  Qxa2+ {[%clk 0:00:10]} 30. Kc1 {[%clk 0:01:01]}  Qxb2+ {[%clk 0:00:09]} 31. Kd2 {[%clk 0:01:02]}  Ra4 {[%clk 0:00:07]} 32. Rdh1 {[%clk 0:00:54]}  Nf6 {[%clk 0:00:06]} 33. Rh8+ {[%clk 0:00:50]}  Bg8 {[%clk 0:00:06]} 34. R1h6 {[%clk 0:00:43]}  Ra2 {[%clk 0:00:06]} 35. Nd4 {[%clk 0:00:43]}  Qb6 {[%clk 0:00:05]} 36. Rg6 {[%clk 0:00:42]}  Qb1 {[%clk 0:00:04]} 37. Rxg5 {[%clk 0:00:31]}  Ra1 {[%clk 0:00:04]} 38. Ne2 {[%clk 0:00:20]}  Qe1+ {[%clk 0:00:04]} 39. Ke3 {[%clk 0:00:20]}  Rd1 {[%clk 0:00:04]} 40. Rf5 {[%clk 0:00:17]}  Qd2+ {[%clk 0:00:05]} 41. Kf2 {[%clk 0:00:17]}  Re1 {[%clk 0:00:05]} 42. g5 {[%clk 0:00:15]}  Rxe2+ {[%clk 0:00:06]} 43. Kg3 {[%clk 0:00:16]}  Rg2+ {[%clk 0:00:06]} 44. Kh3 {[%clk 0:00:16]}  Rxg5 {[%clk 0:00:05]} 0-1


[Site "https://www.chess.com"]

[Event "Titled Tuesday Blitz February 14 Early 2023"]
[White "Skaric, Djuro"]
[Black "Sowul, Bartosz"]
[WhiteFideId "934569"]
[BlackFideId "1137590"]
[WhiteElo "2334"]
[BlackElo "2269"]
[Result "1-0"]
[Round "10"]
[TimeControl "180+2"]
[Date "2023.02.14"]
[WhiteClock "0:00:35"]
[BlackClock "0:00:06"]

1. g3 {[%clk 0:03:00]}  d5 {[%clk 0:02:56]} 2. Bg2 {[%clk 0:03:01]}  c6 {[%clk 0:02:56]} 3. d3 {[%clk 0:03:01]}  Nf6 {[%clk 0:02:56]} 4. Nf3 {[%clk 0:03:02]}  Bg4 {[%clk 0:02:56]} 5. O-O {[%clk 0:03:02]}  Nbd7 {[%clk 0:02:56]} 6. Nc3 {[%clk 0:03:02]}  e5 {[%clk 0:02:56]} 7. h3 {[%clk 0:03:01]}  Bh5 {[%clk 0:02:56]} 8. e4 {[%clk 0:03:00]}  Be7 {[%clk 0:02:52]} 9. g4 {[%clk 0:02:57]}  Bg6 {[%clk 0:02:51]} 10. Nh4 {[%clk 0:02:57]}  dxe4 {[%clk 0:02:39]} 11. dxe4 {[%clk 0:02:52]}  Nxe4 {[%clk 0:02:25]} 12. Nxg6 {[%clk 0:02:46]}  Nxc3 {[%clk 0:02:25]} 13. Qf3 {[%clk 0:02:26]}  hxg6 {[%clk 0:02:15]} 14. Qxc3 {[%clk 0:02:25]}  O-O {[%clk 0:02:15]} 15. Rd1 {[%clk 0:02:23]}  Qc7 {[%clk 0:02:14]} 16. Be3 {[%clk 0:02:22]}  a5 {[%clk 0:02:07]} 17. a3 {[%clk 0:02:10]}  Rfd8 {[%clk 0:01:58]} 18. Be4 {[%clk 0:02:00]}  Nf6 {[%clk 0:01:48]} 19. Bg2 {[%clk 0:02:00]}  Nd7 {[%clk 0:01:34]} 20. Qc4 {[%clk 0:01:56]}  Rac8 {[%clk 0:01:21]} 21. Rd2 {[%clk 0:01:54]}  Nf8 {[%clk 0:01:18]} 22. Rad1 {[%clk 0:01:53]}  Ne6 {[%clk 0:01:14]} 23. Be4 {[%clk 0:01:43]}  Rxd2 {[%clk 0:01:08]} 24. Rxd2 {[%clk 0:01:43]}  b5 {[%clk 0:01:08]} 25. Qd3 {[%clk 0:01:32]}  Rd8 {[%clk 0:01:02]} 26. Qe2 {[%clk 0:01:32]}  Bf6 {[%clk 0:00:45]} 27. Qf3 {[%clk 0:01:28]}  Rxd2 {[%clk 0:00:40]} 28. Bxd2 {[%clk 0:01:28]}  Nd4 {[%clk 0:00:37]} 29. Qd3 {[%clk 0:01:23]}  a4 {[%clk 0:00:33]} 30. Kf1 {[%clk 0:01:23]}  Qb6 {[%clk 0:00:32]} 31. c3 {[%clk 0:01:21]}  Nb3 {[%clk 0:00:31]} 32. Be3 {[%clk 0:01:22]}  Qc7 {[%clk 0:00:31]} 33. c4 {[%clk 0:01:20]}  bxc4 {[%clk 0:00:22]} 34. Qxc4 {[%clk 0:01:20]}  Qd6 {[%clk 0:00:20]} 35. Qxc6 {[%clk 0:01:18]}  Qd1+ {[%clk 0:00:20]} 36. Kg2 {[%clk 0:01:18]}  Nd2 {[%clk 0:00:19]} 37. Bd3 {[%clk 0:01:10]}  e4 {[%clk 0:00:16]} 38. Bxe4 {[%clk 0:00:58]}  Qf1+ {[%clk 0:00:16]} 39. Kg3 {[%clk 0:00:58]}  Qg1+ {[%clk 0:00:09]} 40. Bg2 {[%clk 0:00:54]}  Nf1+ {[%clk 0:00:08]} 41. Kf3 {[%clk 0:00:55]}  Nh2+ {[%clk 0:00:08]} 42. Ke2 {[%clk 0:00:53]}  g5 {[%clk 0:00:06]} 43. f4 {[%clk 0:00:35]} 1-0


[Site "https://www.chess.com"]